Cogmind - Beta 14 @@@ ROGUE MODE // 2024.08.15 @ 15:32:10 Player: P9H Result: Destroyed by H-61 Shepherd with Heavy Assault Cannon Performance ------------- Evolutions (2) 1000 Regions Visited (3) 600 Robots Destroyed (53) 265 Value Destroyed (1743) 1743 Prototype IDs (3) 60 Alien Tech Used (0) 0 Bonus (243) 243 TOTAL SCORE: 3911 Bonus ------- High Alert Combat Kills 243 Cogmind --------- Core Integrity 0/550 Matter 246/300 Energy 2/100 System Corruption 0% Temperature Cool (0) Movement Core (500) Ox9 Location -8/Materials Parts ------- > --- POWER (3) -------- (None) > --- PROPULSION (2) --- (None) > --- UTILITY (4) ------ Improved Heat Sink Large Storage Unit > --- WEAPON (2) ------- Cooled Pulse Rifle Gauss Rifle > --- INVENTORY (15) --- Deuterium Engine Heavy EM Shotgun Heavy EM Shotgun Heavy EM Shotgun Heavy EM Shotgun Spread Laser Cooled Pulse Rifle Heavy Ion Cannon Peak State ------------ > --- POWER ------------ Improved Ion Engine Nuclear Core Light Nuclear Core > --- PROPULSION ------- Wheel Wheel > --- UTILITY ---------- Heat Sink Heat Sink Improved Heat Sink Large Storage Unit > --- WEAPON ----------- Spread Laser Cooled Pulse Rifle > --- INVENTORY -------- Deuterium Engine Light Deuterium Engine Compact Wheel Improved Heat Sink Heavy EM Shotgun Heavy EM Shotgun Heavy EM Shotgun Heavy EM Shotgun Spread Laser Spread Laser Heavy Particle Gun Cooled Pulse Rifle Cooled Pulse Rifle Cooled Pulse Rifle Gauss Rifle [Rating: 28] Favorites ----------- Power Light Ion Engine Engine Light Ion Engine Power Core Light Nuclear Core Propulsion Wheel Wheel Wheel Utility Heat Sink Device Heat Sink Storage Large Storage Unit Protection Light Armor Plating Weapon Spread Laser Energy Gun Spread Laser Ballistic Gun Light Assault Rifle Build | -11 -10 -9 -8 ------- Run | Yrd Mat Mat Mat Slots Evolved 4 | . . 2 2 Power 2 | . . 1 1 Propulsion . | . . . . Utility 2 | . . 1 1 Weapon . | . . . . Parts Attached 48 | 8 6 11 23 Power 10 | 1 . 3 6 Engine 8 | 1 . 3 4 Core 2 | . . . 2 Reactor . | . . . . Propulsion 9 | 2 2 2 3 Treads . | . . . . Leg . | . . . . Wheel 9 | 2 2 2 3 Hover . | . . . . Flight . | . . . . Utility 15 | 3 3 3 6 Device 11 | 2 1 3 5 Storage 3 | 1 2 . . Processor . | . . . . Hackware . | . . . . Protection 1 | . . . 1 Artifact . | . . . . Weapon 14 | 2 1 3 8 Energy Gun 12 | 2 . 3 7 Energy Cannon . | . . . . Ballistic Gun 2 | . 1 . 1 Ballistic Cannon . | . . . . Launcher . | . . . . Special Weapon . | . . . . Impact Weapon . | . . . . Slashing Weapon . | . . . . Piercing Weapon . | . . . . Special Melee Weapon . | . . . . Unidentified Prototypes 3 | . . 1 2 Parts Lost 31 | . 3 5 23 Power 9 | . . 2 7 Propulsion 6 | . 1 1 4 Utility 8 | . 1 1 6 Weapon 8 | . 1 1 6 Highest Loss Streak 14 | . 2 3 14 To Critical Strikes . | . . . . Average Slot Usage (%) 94 | . 95 95 93 Engine 17 | . 14 19 18 Core 2 | . . . 6 Wheel 21 | . 27 21 17 Device 22 | . 21 21 22 Storage 8 | . 3 11 9 Protection 1 | . . . 2 Energy Gun 19 | . 22 19 17 Ballistic Gun 1 | . 4 1 . Peak Build Rating 28 | 9 9 17 28 Average Rating 14 | 4 7 11 22 On Entrance 8 | . 9 8 15 Naked Turns . | . . . . Heaviest Build 49 | 8 27 35 49 Greatest Support 26 | 26 26 22 22 Greatest Overweight (x) 3 | . 1 3 3 Average Overweight (x) . | . . 1 1 Largest Inventory Capacity 15 | 8 15 15 15 Average Capacity 12 | 5 7 15 15 Most Carried 15 | 5 9 15 15 Average Carried 11 | 2 5 12 14 Final Capacity 15 | 5 15 15 15 Final Carried 15 | 4 9 15 8 Class Distribution -------------------- 79% | Scavenger-Mutant 20% | Mutant Dominant Class ---------------- Mutant | -10/Materials Scavenger-Mutant | -9/Materials Scavenger-Mutant | -8/Materials Resources | -11 -10 -9 -8 ----------- Run | Yrd Mat Mat Mat Matter Collected 540 | 254 94 94 98 Remotely . | . . . . Salvage Created 1696 | 15 208 538 935 Parts 129 | 4 16 35 74 Haulers Intercepted 1 | . . . 1 Recyclers Shooed 4 | . 1 1 2 Parts Field Recycled . | . . . . Retrieved Matter . | . . . . Parts Self-Destructed . | . . . . Prevented . | . . . . Kills | -11 -10 -9 -8 ------- Run | Yrd Mat Mat Mat Combat Hostiles Destroyed 44 | . 7 15 22 Guns 38 | . 7 15 16 AOE 6 | . . . 6 Classes Destroyed 12 | 1 2 3 6 Worker 1 | . . 1 . Builder 2 | . . . 2 Tunneler 2 | 1 . . 1 Hauler 1 | . . . 1 Recycler 2 | . . 1 1 Watcher 1 | . . . 1 Swarmer 11 | . 4 3 4 Grunt 18 | . 3 8 7 Brawler 1 | . . . 1 Sentry 9 | . . 4 5 Specialist 2 | . . . 2 Hunter 3 | . . . 3 Best Kill Streak 10 | 1 3 5 10 Combat Bots Only 9 | . 3 4 9 Max Kills in Single Turn 3 | 1 2 1 3 Gunslinging 1 | . 1 . . Exploded 3 | . . . 3 Melee . | . . . . Uniques/NPCs Destroyed . | . . . . Combat | -11 -10 -9 -8 -------- Run | Yrd Mat Mat Mat Hostile Shots Fired 241 | . 49 52 140 Missed 66 | . 13 11 42 Damage Taken 3026 | . 369 595 2062 Core 905 | . 148 167 590 Absorbed by Shields . | . . . . Core Remaining (%) 66 | 100 40 58 . Volleys Fired 150 | 2 34 39 75 Largest 2 | 2 2 2 2 Hottest 130 | 90 90 130 130 Shots Fired 267 | 4 55 74 134 Gun 267 | 4 55 74 134 Cannon . | . . . . Launcher . | . . . . Special . | . . . . Kinetic 18 | . 13 4 1 Thermal 249 | 4 42 70 133 Explosive . | . . . . Electromagnetic . | . . . . Robot Hit Streak 15 | 1 11 14 15 Robot Miss Streak 14 | 2 5 14 14 Penetration Max . | . . . . Secondary Targets 4 | . 1 2 1 Max Gunslinging Chain 1 | . 1 1 1 Shots Hit Robots 195 | 1 28 60 106 Core Hits 184 | 1 14 56 113 Critical Kills . | . . . . Critical Parts Destroyed . | . . . . Critical Strikes 3 | . 1 2 . Burn 3 | . 1 2 . Melee Attacks . | . . . . Impact . | . . . . Slashing . | . . . . Piercing . | . . . . Sneak Attacks . | . . . . Combat Hostiles . | . . . . Follow-up Attacks . | . . . . Damage Inflicted 3549 | 12 320 829 2388 Guns 2801 | 12 320 829 1640 Cannons . | . . . . Explosions 748 | . . . 748 Melee . | . . . . Ramming . | . . . . Kinetic 107 | . 73 34 . Thermal 3226 | 12 247 795 2172 Explosive 216 | . . . 216 Electromagnetic . | . . . . Impact . | . . . . Slashing . | . . . . Piercing . | . . . . Highest Corruption . | . . . . Average Corruption . | . . . . Corruption Purged . | . . . . Corruption Blocked . | . . . . Overload Shots . | . . . . Overflow Damage 227 | . . 82 145 Projectiles . | . . . . Explosions 227 | . . 82 145 Melee . | . . . . Knockbacks . | . . . . Impact . | . . . . Kinetic . | . . . . Secondary . | . . . . Self-Inflicted Damage 445 | . . 94 351 Shots 6 | . . 1 5 Rammed . | . . . . Targets Rammed . | . . . . Kicked . | . . . . Crushed . | . . . . Highest Temperature 322 | 55 322 158 120 Average Temperature 95 | 28 150 51 53 Received Heat Transfer 690 | . 168 234 288 Effects 2 | . 2 . . Energy Bleed 1 | . 1 . . Damage (minor) 1 | . 1 . . Siege Activations . | . . . . Robots Corrupted . | . . . . Combat Hostiles . | . . . . Parts Fried . | . . . . Impact Corruptions . | . . . . Robots Melted . | . . . . Combat Hostiles . | . . . . Parts Melted 2 | . . . 2 Heat Transferred 5316 | 37 731 1656 2892 Parts Sabotaged . | . . . . Parts Stolen . | . . . . Parts Stripped . | . . . . Power Chain Reactions . | . . . . Alert | -11 -10 -9 -8 ------- Run | Yrd Mat Mat Mat Peak Influence 733 | 5 208 395 733 Initial 143 | . 3 87 143 Average 311 | 2 92 262 499 Maximum Alert Level 3 | . 1 1 3 Low Security (%) 42 | 100 91 32 16 Level 1 27 | . 8 67 10 Level 2 23 | . . . 57 Level 3 6 | . . . 15 Level 4 . | . . . . Level 5 . | . . . . High Security . | . . . . Max Security . | . . . . Squads Dispatched 7 | . 1 2 4 Investigation 2 | . . 2 . Extermination . | . . . . Reinforcement 5 | . 1 . 4 Assault . | . . . . Garrison . | . . . . Intercept . | . . . . Searches Triggered . | . . . . Construction Impeded . | . . . . Haulers Reinforced . | . . . . Active Scanning Responses . | . . . . Cargo Convoy Interrupts . | . . . . Stealth | -11 -10 -9 -8 --------- Run | Yrd Mat Mat Mat Distress Signals 7 | . 2 3 2 Communications Jammed . | . . . . Distress Signals . | . . . . Times Spotted 60 | . 15 18 27 Peak Tracking Total 6 | . 5 4 6 Tactical Retreats 1 | . 1 . . Traps | -11 -10 -9 -8 ------- Run | Yrd Mat Mat Mat Traps Triggered 2 | . . 2 . Indirectly . | . . . . Trap Hack Attempts . | . . . . Triggered . | . . . . Disarmed . | . . . . Reprogrammed . | . . . . Reused . | . . . . Traps Extracted . | . . . . Installed . | . . . . Triggered . | . . . . Machines | -11 -10 -9 -8 ---------- Run | Yrd Mat Mat Mat Machines Disabled 11 | . . 1 10 Max in Single Turn 6 | . . 1 6 Garrison Access 1 | . . . 1 Machines Repaired . | . . . . Machines Dismantled . | . . . . Machines Sabotaged . | . . . . Overloaded Fab Kills . | . . . . Hacking | -11 -10 -9 -8 --------- Run | Yrd Mat Mat Mat Machines Accessed 1 | . . . 1 Terminals . | . . . . Fabricators . | . . . . Repair Stations . | . . . . Recycling Units . | . . . . Scanalyzers . | . . . . Garrison Access 1 | . . . 1 Total Hacks 1 | . . . 1 Successful 1 | . . . 1 Failed . | . . . . Catastrophic . | . . . . Database Lockouts . | . . . . Manual . | . . . . Terminals . | . . . . Fabricators . | . . . . Repair Stations . | . . . . Recycling Units . | . . . . Scanalyzers . | . . . . Garrison Access 1 | . . . 1 Terminal Hacks . | . . . . Fabricator Hacks . | . . . . Repair Station Hacks . | . . . . Recycling Unit Hacks . | . . . . Scanalyzer . | . . . . Garrison Access Hacks 1 | . . . 1 Seal Access 1 | . . . 1 Unauthorized Hacks . | . . . . Terminals . | . . . . Fabricators . | . . . . Repair Stations . | . . . . Recycling Units . | . . . . Scanalyzers . | . . . . Garrison Access . | . . . . Data Cores Recovered . | . . . . Used . | . . . . Hacking Detections . | . . . . Full Trace Events . | . . . . Feedback Events . | . . . . Feedback Blocked . | . . . . Robot Schematics Acquired . | . . . . Robots Built . | . . . . Authchips . | . . . . Time . | . . . . Total Robot Build Rating . | . . . . Part Schematics Acquired . | . . . . Parts Built . | . . . . Authchips . | . . . . Time . | . . . . Total Part Build Rating . | . . . . Parts Repaired . | . . . . Time . | . . . . Parts Recycled . | . . . . Recycled Matter . | . . . . Retrieved Matter . | . . . . Retrieved Components . | . . . . Parts Scanalyzed . | . . . . Part Schematics Acquired . | . . . . Parts Damaged . | . . . . Bothacking | -11 -10 -9 -8 ------------ Run | Yrd Mat Mat Mat Used RIF Installer . | . . . . Robots Hacked . | . . . . Non-combat . | . . . . Combat . | . . . . Robot Hacks Applied . | . . . . Relay Couplers Released . | . . . . Fabnet Peak Effective % . | . . . . Robots Rewired . | . . . . Allies Hacked . | . . . . Hacks Repelled . | . . . . Allies | -11 -10 -9 -8 -------- Run | Yrd Mat Mat Mat Total Allies . | . . . . Largest Group . | . . . . Highest-Rated Group . | . . . . Highest-Rated Ally . | . . . . Total Orders . | . . . . Ally Attacks . | . . . . Total Damage . | . . . . Kills . | . . . . Allies Corrupted . | . . . . Allies Melted . | . . . . Intel | -11 -10 -9 -8 ------- Run | Yrd Mat Mat Mat Robot Analysis Total . | . . . . Derelict Logs Recovered . | . . . . Drone Launches . | . . . . Drone Recoveries . | . . . . Exploration | -11 -10 -9 -8 ------------- Run | Yrd Mat Mat Mat Turns Passed 1532 | 58 356 480 638 Spaces Moved 995 | 39 262 344 350 Core 3 | 3 . . . Treads . | . . . . Legs . | . . . . Wheels 992 | 36 262 344 350 Hover . | . . . . Flight . | . . . . Fastest Speed 50 | 50 80 95 100 Average Speed 98 | 86 89 96 108 Slowest Speed 130 | 90 95 125 130 Overloaded Moves . | . . . . Propulsion Burnouts . | . . . . Robots Hopped . | . . . . Cave-ins Triggered . | . . . . Exploration Rate (%) 36 | 4 50 38 54 Regions Visited 3 Branch Regions . Pre-discovered Areas . | . . . . Known Exits Taken . | . . . . Unknown Exits Taken 3 | 1 1 1 . Scrap Searched . | . . . . Spaces Dug . | . . . . Terrain Destroyed 134 | . . 21 113 Melee . | . . . . Projectile . | . . . . AOE 134 | . . 21 113 Terrain Rammed . | . . . . Walls Destroyed . | . . . . Machines Disabled . | . . . . Actions | -11 -10 -9 -8 --------- Run | Yrd Mat Mat Mat Total 1288 | 57 328 423 480 Wait 28 | . 19 2 7 Move 992 | 38 261 343 350 Hop . | . . . . Pick Up 50 | 9 6 19 16 Fast Attach 8 | 2 3 1 2 Attach 29 | 5 . 7 17 Detach . | . . . . Swap 11 | 1 3 3 4 Drop 20 | . 2 9 9 Fire 150 | 2 34 39 75 Melee . | . . . . Ram . | . . . . Kick . | . . . . Crush . | . . . . Escape Stasis . | . . . . Rewire . | . . . . Trap . | . . . . Miscellaneous . | . . . . Route ------- -11/Scrapyard -10/Materials -9/Materials -8/Materials (discovered 1 exit: [*Fac]) History --------- Turn | Location | Event 12 | -11/Scrapyard | Discovered new exit (range 15) 59 | -11/Scrapyard | Entered Materials 314 | -10/Materials | Build established: Mutant 344 | -10/Materials | Discovered new exit (range 12) 367 | -10/Materials | Core integrity fell below 50% 415 | -10/Materials | Entered another Materials area 415 | -9/Materials | Evolved 2 slots: Power x1, Utility x1 508 | -9/Materials | Lost 3 parts (1p1u1w) 614 | -9/Materials | Build established: Scavenger-Mutant 847 | -9/Materials | Discovered new exit (range 15) 895 | -9/Materials | Entered another Materials area 895 | -8/Materials | Evolved 2 slots: Power x1, Utility x1 1138 | -8/Materials | Lost 3 parts (1p1u1w) 1141 | -8/Materials | Destroyed 9 combat bots 1459 | -8/Materials | Lost 4 parts (1p1n1u1w) 1483 | -8/Materials | Discovered new exit (range 9) 1487 | -8/Materials | Core integrity fell below 50% 1514 | -8/Materials | Core integrity fell below 20% 1533 | -8/Materials | Destroyed by H-61 Shepherd with Heavy Assault Cannon Last Messages --------------- 01506_ U-05 Engineer lays Concrete. 01507_ Com. Wheel destroyed. 01507_ Lgt. Nuclear Core destroyed. 01507_ Knocked back. 01507_ U-05 Engineer lays Concrete. 01509_ Lgt. Deuterium Engine destroyed. 01510_ U-05 Engineer builds a Wall. 01512_ Spread Laser destroyed. 01513_ Cld. Pulse Rifle destroyed. 01513_ Critical hit (Blast). 01514_ U-05 Engineer lays Concrete. 01518_ Hvy. Particle Gun destroyed. 01521_ Nuclear Core destroyed. 01524_ U-05 Engineer lays Concrete. 01525_ K-01 Serf collects debris. 01526_ U-05 Engineer lays Concrete. 01527_ K-01 Serf collects debris. 01528_ U-05 Engineer lays Concrete. 01531_ K-01 Serf collects debris. 01533_ Slug penetrates Wall. Map ----- +----------------------------------------------------+ | +?????????????????????????????????????????? | | #?????????????????????????????????????????? | | #?????????????????????????????????????????? | | #?????????????????????????????????????????? | | #?????????????????????????????????????????? | | #?????????????????????????????????????????? | | #?????????????????????????????????????????? | | #?????????????????????????????????????????? | | #?????????????????????????????????????????? | | #?????????????????????????????????????????? | | # +?????????????????????????????????????????? | | ###??#+#????????????????????????????????????? | | #????????????????????????????????????? | | ###### #?########???????????????????????????? | | ####?# #?# [ ]==#???????????????????????????? | | ###""## #?# ]]==#???????????????????????????? | | # #?# #???????????????????????????? | | # ### #######+###########?????????? | | # ??????????? | | /